{"text_format":"3","workbook":"xlsx","n_sheets":1,"sheets":["Feuil1"],"not_rendered":{"macros":1},"read":"whole","date_system":"1900"}

{"sheet":"Feuil1","index":0,"n_rows":36,"n_cols":38,"rows_kept":36}
["Cultures","Ail","Aubergine","Artichaut","Basilic","Bette","Betteraves","Carottes","Celeri","Choux","Concombres","Cornichons","Courges","Cresson","Echalottes","Epinards","Feves","Fraisier","Framboisier","Haricots","Laitue","Mâche","Melon","Navet","Œillet D'Inde","Oignon","Pêcher","Persil","Pois","Pdt","Poivron","Poireaux","Radis","Souci","Tomates","Tournesol","Bonne association","Mauvaise association"]
["Ail",{"$nulls":5},"+","+",null,"+",{"$nulls":6},"-","+",null,"-","+",{"$nulls":5},"+",null,"-","+",null,"-",null,null,"+",null,{"$f":"assoc(Tableau3[[#This Row],[Cultures]],Tableau3[[#Headers],[Ail]:[Tournesol]],\"+\")","v":"Betteraves Carottes Choux Fraisier Laitue Pêcher Pdt Tomates "},{"$f":"assoc(Tableau3[[#This Row],[Cultures]],Tableau3[[#Headers],[Ail]:[Tournesol]],\"-\")","v":"Feves Haricots Pois Poireaux "}]
["Aubergine",{"$nulls":18},"+",{"$nulls":4},"+",{"$nulls":4},"-","+",{"$nulls":5},{"$f":"assoc(Tableau3[[#This Row],[Cultures]],Tableau3[[#Headers],[Ail]:[Tournesol]],\"+\")","v":"Haricots Œillet D'Inde Poivron "},{"$f":"assoc(Tableau3[[#This Row],[Cultures]],Tableau3[[#Headers],[Ail]:[Tournesol]],\"-\")","v":"Pdt "}]
["Artichaut",{"$nulls":15},"+",{"$nulls":19},{"$f":"assoc(Tableau3[[#This Row],[Cultures]],Tableau3[[#Headers],[Ail]:[Tournesol]],\"+\")","v":"Feves "},{"$f":"assoc(Tableau3[[#This Row],[Cultures]],Tableau3[[#Headers],[Ail]:[Tournesol]],\"-\")","v":""}]
["Basilic",{"$nulls":33},"+",null,{"$f":"assoc(Tableau3[[#This Row],[Cultures]],Tableau3[[#Headers],[Ail]:[Tournesol]],\"+\")","v":"Tomates "},{"$f":"assoc(Tableau3[[#This Row],[Cultures]],Tableau3[[#Headers],[Ail]:[Tournesol]],\"-\")","v":""}]
["Bette",{"$nulls":6},"-","+","+",{"$nulls":4},"+","+",{"$nulls":4},"+",{"$nulls":4},"+",{"$nulls":3},"-",null,"-","+",null,"-",null,{"$f":"assoc(Tableau3[[#This Row],[Cultures]],Tableau3[[#Headers],[Ail]:[Tournesol]],\"+\")","v":"Celeri Choux Echalottes Epinards Laitue Oignon Radis "},{"$f":"assoc(Tableau3[[#This Row],[Cultures]],Tableau3[[#Headers],[Ail]:[Tournesol]],\"-\")","v":"Carottes Pdt Poireaux Tomates "}]
["Betteraves","+",{"$nulls":5},"-","+","+",{"$nulls":4},"+","+",{"$nulls":3},"-","+",{"$nulls":4},"+",{"$nulls":3},"-",null,"-","+",null,"-",null,{"$f":"assoc(Tableau3[[#This Row],[Cultures]],Tableau3[[#Headers],[Ail]:[Tournesol]],\"+\")","v":"Ail Celeri Choux Echalottes Epinards Laitue Oignon Radis "},{"$f":"assoc(Tableau3[[#This Row],[Cultures]],Tableau3[[#Headers],[Ail]:[Tournesol]],\"-\")","v":"Carottes Haricots Pdt Poireaux Tomates "}]
["Carottes","+",{"$nulls":3},"-","-",null,"+","+",{"$nulls":4},"+","+","+",null,null,"+","+",{"$nulls":4},"+",null,null,"+","-",null,"+","+",null,"+",null,{"$f":"assoc(Tableau3[[#This Row],[Cultures]],Tableau3[[#Headers],[Ail]:[Tournesol]],\"+\")","v":"Ail Celeri Choux Echalottes Epinards Feves Haricots Laitue Oignon Pois Poireaux Radis Tomates "},{"$f":"assoc(Tableau3[[#This Row],[Cultures]],Tableau3[[#Headers],[Ail]:[Tournesol]],\"-\")","v":"Bette Betteraves Pdt "}]
["Celeri",{"$nulls":4},"+","+","+",null,"+",{"$nulls":6},"+",null,null,"+","-","+",{"$nulls":5},"-","+","-",null,"+","+",{"$nulls":3},{"$f":"assoc(Tableau3[[#This Row],[Cultures]],Tableau3[[#Headers],[Ail]:[Tournesol]],\"+\")","v":"Bette Betteraves Carottes Choux Feves Haricots Mâche Pois Poireaux Radis "},{"$f":"assoc(Tableau3[[#This Row],[Cultures]],Tableau3[[#Headers],[Ail]:[Tournesol]],\"-\")","v":"Laitue Persil Pdt "}]
["Choux","+",{"$nulls":3},"+","+","+","+",null,"+","+",null,null,"-","+","+","-",null,"+","+","+",{"$nulls":3},"-",null,null,"+","+",null,"-","-","-","-",null,{"$f":"assoc(Tableau3[[#This Row],[Cultures]],Tableau3[[#Headers],[Ail]:[Tournesol]],\"+\")","v":"Ail Bette Betteraves Carottes Celeri Concombres Cornichons Epinards Feves Haricots Laitue Mâche Pois Pdt "},{"$f":"assoc(Tableau3[[#This Row],[Cultures]],Tableau3[[#Headers],[Ail]:[Tournesol]],\"-\")","v":"Echalottes Fraisier Oignon Poireaux Radis Souci Tomates "}]
["Concombres",{"$nulls":8},"+",{"$nulls":6},"+",null,null,"+","+",null,"-",null,null,"+",{"$nulls":3},"-",null,null,"-",null,"-","+",{"$f":"assoc(Tableau3[[#This Row],[Cultures]],Tableau3[[#Headers],[Ail]:[Tournesol]],\"+\")","v":"Choux Feves Haricots Laitue Oignon Tournesol "},{"$f":"assoc(Tableau3[[#This Row],[Cultures]],Tableau3[[#Headers],[Ail]:[Tournesol]],\"-\")","v":"Melon Pdt Radis Tomates "}]
["Cornichons",{"$nulls":8},"+",{"$nulls":6},"+",null,null,"+","+",null,"-",null,null,"+",null,null,"+","-",null,null,"-",null,"-",null,{"$f":"assoc(Tableau3[[#This Row],[Cultures]],Tableau3[[#Headers],[Ail]:[Tournesol]],\"+\")","v":"Choux Feves Haricots Laitue Oignon Pois "},{"$f":"assoc(Tableau3[[#This Row],[Cultures]],Tableau3[[#Headers],[Ail]:[Tournesol]],\"-\")","v":"Melon Pdt Radis Tomates "}]
["Courges",{"$nulls":15},"+",null,null,"+",null,null,"-",{"$nulls":6},"-",null,null,"-",null,"-",null,{"$f":"assoc(Tableau3[[#This Row],[Cultures]],Tableau3[[#Headers],[Ail]:[Tournesol]],\"+\")","v":"Feves Haricots "},{"$f":"assoc(Tableau3[[#This Row],[Cultures]],Tableau3[[#Headers],[Ail]:[Tournesol]],\"-\")","v":"Melon Pdt Radis Tomates "}]
["Cresson",{"$nulls":31},"+",{"$nulls":3},{"$f":"assoc(Tableau3[[#This Row],[Cultures]],Tableau3[[#Headers],[Ail]:[Tournesol]],\"+\")","v":"Radis "},{"$f":"assoc(Tableau3[[#This Row],[Cultures]],Tableau3[[#Headers],[Ail]:[Tournesol]],\"-\")","v":""}]
["Echalottes",{"$nulls":4},"+","+","+",null,"-",{"$nulls":6},"-","+",null,"-","+",{"$nulls":4},"+",null,null,"-","+",{"$nulls":4},"+",null,{"$f":"assoc(Tableau3[[#This Row],[Cultures]],Tableau3[[#Headers],[Ail]:[Tournesol]],\"+\")","v":"Bette Betteraves Carottes Fraisier Laitue Oignon Pdt Tomates "},{"$f":"assoc(Tableau3[[#This Row],[Cultures]],Tableau3[[#Headers],[Ail]:[Tournesol]],\"-\")","v":"Choux Feves Haricots Pois "}]
["Epinards",{"$nulls":4},"+","+","+",null,"+",{"$nulls":6},"+","+",null,"+","+",null,"+","+",{"$nulls":7},"+","+",null,"+",null,{"$f":"assoc(Tableau3[[#This Row],[Cultures]],Tableau3[[#Headers],[Ail]:[Tournesol]],\"+\")","v":"Bette Betteraves Carottes Choux Feves Fraisier Haricots Laitue Melon Navet Poireaux Radis Tomates "},{"$f":"assoc(Tableau3[[#This Row],[Cultures]],Tableau3[[#Headers],[Ail]:[Tournesol]],\"-\")","v":""}]
["Feves","-",null,"+",{"$nulls":3},"+","+","+","+","+","+",null,"-","+",{"$nulls":3},"+","+",null,"+",null,null,"-",null,null,"-","+",null,"-","+",{"$nulls":3},{"$f":"assoc(Tableau3[[#This Row],[Cultures]],Tableau3[[#Headers],[Ail]:[Tournesol]],\"+\")","v":"Artichaut Carottes Celeri Choux Concombres Cornichons Courges Epinards Haricots Laitue Melon Pdt Radis "},{"$f":"assoc(Tableau3[[#This Row],[Cultures]],Tableau3[[#Headers],[Ail]:[Tournesol]],\"-\")","v":"Ail Echalottes Oignon Pois Poireaux "}]
["Fraisier","+",{"$nulls":7},"-",{"$nulls":4},"+","+",{"$nulls":3},"+","+","+",{"$nulls":3},"+",{"$nulls":5},"+",{"$nulls":4},{"$f":"assoc(Tableau3[[#This Row],[Cultures]],Tableau3[[#Headers],[Ail]:[Tournesol]],\"+\")","v":"Ail Echalottes Epinards Haricots Laitue Mâche Oignon Poireaux "},{"$f":"assoc(Tableau3[[#This Row],[Cultures]],Tableau3[[#Headers],[Ail]:[Tournesol]],\"-\")","v":"Choux "}]
["Framboisier",{"$nulls":28},"-",{"$nulls":6},{"$f":"assoc(Tableau3[[#This Row],[Cultures]],Tableau3[[#Headers],[Ail]:[Tournesol]],\"+\")","v":""},{"$f":"assoc(Tableau3[[#This Row],[Cultures]],Tableau3[[#Headers],[Ail]:[Tournesol]],\"-\")","v":"Pdt "}]
["Haricots","-","+",{"$nulls":3},"-","+","+","+","+","+","+",null,"-","+","+","+",null,null,"+","+","+","+",null,"-",null,null,"-","+",null,"-","+",null,"-",null,{"$f":"assoc(Tableau3[[#This Row],[Cultures]],Tableau3[[#Headers],[Ail]:[Tournesol]],\"+\")","v":"Aubergine Carottes Celeri Choux Concombres Cornichons Courges Epinards Feves Fraisier Laitue Mâche Melon Navet Pdt Radis "},{"$f":"assoc(Tableau3[[#This Row],[Cultures]],Tableau3[[#Headers],[Ail]:[Tournesol]],\"-\")","v":"Ail Betteraves Echalottes Oignon Pois Poireaux Tomates "}]
["Laitue","+",{"$nulls":3},"+","+","+","-","+","+","+",null,null,"+","+","+","+",null,"+",null,"+","+","+",null,"+",null,"-","+",null,null,"+","+",null,null,"-",{"$f":"assoc(Tableau3[[#This Row],[Cultures]],Tableau3[[#Headers],[Ail]:[Tournesol]],\"+\")","v":"Ail Bette Betteraves Carottes Choux Concombres Cornichons Echalottes Epinards Feves Fraisier Haricots Mâche Melon Navet Oignon Pois Poireaux Radis "},{"$f":"assoc(Tableau3[[#This Row],[Cultures]],Tableau3[[#Headers],[Ail]:[Tournesol]],\"-\")","v":"Celeri Persil Tournesol "}]
["Mâche",{"$nulls":7},"+","+",{"$nulls":7},"+",null,"+","+",{"$nulls":4},"+",{"$nulls":10},{"$f":"assoc(Tableau3[[#This Row],[Cultures]],Tableau3[[#Headers],[Ail]:[Tournesol]],\"+\")","v":"Celeri Choux Fraisier Haricots Laitue Oignon "},{"$f":"assoc(Tableau3[[#This Row],[Cultures]],Tableau3[[#Headers],[Ail]:[Tournesol]],\"-\")","v":""}]
["Melon",{"$nulls":9},"-","-","-",null,null,"+","+",null,null,"+","+",{"$nulls":7},"+","-",{"$nulls":6},{"$f":"assoc(Tableau3[[#This Row],[Cultures]],Tableau3[[#Headers],[Ail]:[Tournesol]],\"+\")","v":"Epinards Feves Haricots Laitue Pois "},{"$f":"assoc(Tableau3[[#This Row],[Cultures]],Tableau3[[#Headers],[Ail]:[Tournesol]],\"-\")","v":"Concombres Cornichons Courges Pdt "}]
["Navet",{"$nulls":14},"+",{"$nulls":3},"+","+",{"$nulls":4},"-",null,null,"+",{"$nulls":7},{"$f":"assoc(Tableau3[[#This Row],[Cultures]],Tableau3[[#Headers],[Ail]:[Tournesol]],\"+\")","v":"Epinards Haricots Laitue Pois "},{"$f":"assoc(Tableau3[[#This Row],[Cultures]],Tableau3[[#Headers],[Ail]:[Tournesol]],\"-\")","v":"Oignon "}]
["Œillet D'Inde",null,"+",{"$nulls":31},"+",null,{"$f":"assoc(Tableau3[[#This Row],[Cultures]],Tableau3[[#Headers],[Ail]:[Tournesol]],\"+\")","v":"Aubergine Tomates "},{"$f":"assoc(Tableau3[[#This Row],[Cultures]],Tableau3[[#Headers],[Ail]:[Tournesol]],\"-\")","v":""}]
["Oignon",{"$nulls":4},"+","+","+",null,"-","+","+",null,null,"+",null,"-","+",null,"-","+","+",null,"-",{"$nulls":4},"-","-",null,"-",null,null,"+",null,{"$f":"assoc(Tableau3[[#This Row],[Cultures]],Tableau3[[#Headers],[Ail]:[Tournesol]],\"+\")","v":"Bette Betteraves Carottes Concombres Cornichons Echalottes Fraisier Laitue Mâche Tomates "},{"$f":"assoc(Tableau3[[#This Row],[Cultures]],Tableau3[[#Headers],[Ail]:[Tournesol]],\"-\")","v":"Choux Feves Haricots Navet Pois Pdt Poireaux "}]
["Pêcher","+",{"$nulls":34},{"$f":"assoc(Tableau3[[#This Row],[Cultures]],Tableau3[[#Headers],[Ail]:[Tournesol]],\"+\")","v":"Ail "},{"$f":"assoc(Tableau3[[#This Row],[Cultures]],Tableau3[[#Headers],[Ail]:[Tournesol]],\"-\")","v":""}]
["Persil",{"$nulls":7},"-",{"$nulls":11},"-",{"$nulls":7},"-",null,null,"-","+",null,"+",null,{"$f":"assoc(Tableau3[[#This Row],[Cultures]],Tableau3[[#Headers],[Ail]:[Tournesol]],\"+\")","v":"Radis Tomates "},{"$f":"assoc(Tableau3[[#This Row],[Cultures]],Tableau3[[#Headers],[Ail]:[Tournesol]],\"-\")","v":"Celeri Laitue Pois Poireaux "}]
["Pois","-",{"$nulls":5},"+","+","+",null,"+",null,null,"-",null,"-",null,null,"-","+",null,"+","+",null,"-",null,"-",null,"+",null,"-","+",null,"-",null,{"$f":"assoc(Tableau3[[#This Row],[Cultures]],Tableau3[[#Headers],[Ail]:[Tournesol]],\"+\")","v":"Carottes Celeri Choux Cornichons Laitue Melon Navet Pdt Radis "},{"$f":"assoc(Tableau3[[#This Row],[Cultures]],Tableau3[[#Headers],[Ail]:[Tournesol]],\"-\")","v":"Ail Echalottes Feves Haricots Oignon Persil Poireaux Tomates "}]
["Pdt","+","-",null,null,"-","-","-","-","+","-","-","-",null,"+",null,"+",null,"-","+",null,null,"-",null,null,"-",null,null,"+",null,"-",{"$nulls":3},"-","-",{"$f":"assoc(Tableau3[[#This Row],[Cultures]],Tableau3[[#Headers],[Ail]:[Tournesol]],\"+\")","v":"Ail Choux Echalottes Feves Haricots Pois "},{"$f":"assoc(Tableau3[[#This Row],[Cultures]],Tableau3[[#Headers],[Ail]:[Tournesol]],\"-\")","v":"Aubergine Bette Betteraves Carottes Celeri Concombres Cornichons Courges Framboisier Melon Oignon Poivron Tomates Tournesol "}]
["Poivron",null,"+",{"$nulls":26},"-",{"$nulls":6},{"$f":"assoc(Tableau3[[#This Row],[Cultures]],Tableau3[[#Headers],[Ail]:[Tournesol]],\"+\")","v":"Aubergine "},{"$f":"assoc(Tableau3[[#This Row],[Cultures]],Tableau3[[#Headers],[Ail]:[Tournesol]],\"-\")","v":"Pdt "}]
["Poireaux","-",{"$nulls":3},"-","-","+","+","-",{"$nulls":5},"+","-","+",null,"-","+",{"$nulls":4},"-",null,"-","-",{"$nulls":5},"-",null,{"$f":"assoc(Tableau3[[#This Row],[Cultures]],Tableau3[[#Headers],[Ail]:[Tournesol]],\"+\")","v":"Carottes Celeri Epinards Fraisier Laitue "},{"$f":"assoc(Tableau3[[#This Row],[Cultures]],Tableau3[[#Headers],[Ail]:[Tournesol]],\"-\")","v":"Ail Bette Betteraves Choux Feves Haricots Oignon Persil Pois Tomates "}]
["Radis",{"$nulls":4},"+","+","+","+","-","-","-","-","+",null,"+","+",null,null,"+","+",{"$nulls":6},"+","+",{"$nulls":5},"+",null,{"$f":"assoc(Tableau3[[#This Row],[Cultures]],Tableau3[[#Headers],[Ail]:[Tournesol]],\"+\")","v":"Bette Betteraves Carottes Celeri Cresson Epinards Feves Haricots Laitue Persil Pois Tomates "},{"$f":"assoc(Tableau3[[#This Row],[Cultures]],Tableau3[[#Headers],[Ail]:[Tournesol]],\"-\")","v":"Choux Concombres Cornichons Courges "}]
["Souci",{"$nulls":8},"-",{"$nulls":24},"+",null,{"$f":"assoc(Tableau3[[#This Row],[Cultures]],Tableau3[[#Headers],[Ail]:[Tournesol]],\"+\")","v":"Tomates "},{"$f":"assoc(Tableau3[[#This Row],[Cultures]],Tableau3[[#Headers],[Ail]:[Tournesol]],\"-\")","v":"Choux "}]
["Tomates","+",null,null,"+","-","-","+",null,"-","-","-","-",null,"+","+",{"$nulls":3},"-",{"$nulls":4},"+","+",null,"+","-","-",null,"-","+","+",null,null,{"$f":"assoc(Tableau3[[#This Row],[Cultures]],Tableau3[[#Headers],[Ail]:[Tournesol]],\"+\")","v":"Ail Basilic Carottes Echalottes Epinards Œillet D'Inde Oignon Persil Radis Souci "},{"$f":"assoc(Tableau3[[#This Row],[Cultures]],Tableau3[[#Headers],[Ail]:[Tournesol]],\"-\")","v":"Bette Betteraves Choux Concombres Cornichons Courges Haricots Pois Pdt Poireaux "}]
["Tournesol",{"$nulls":9},"+",{"$nulls":9},"-",{"$nulls":8},"-",{"$nulls":6},{"$f":"assoc(Tableau3[[#This Row],[Cultures]],Tableau3[[#Headers],[Ail]:[Tournesol]],\"+\")","v":"Concombres "},{"$f":"assoc(Tableau3[[#This Row],[Cultures]],Tableau3[[#Headers],[Ail]:[Tournesol]],\"-\")","v":"Laitue Pdt "}]